Cogmind - Beta 16 @@@ ROGUE MODE // 2025.11.09 @ 01:02:00 // Winter2019/RPGLIKE Player: Toaster Result: Self-destructed Performance ------------- Evolutions (4) 2000 Regions Visited (5) 1000 Robots Destroyed (50) 250 Value Destroyed (1908) 1908 Prototype IDs (22) 440 Alien Tech Used (0) 0 Bonus (337) 337 TOTAL SCORE: 5935 Bonus ------- Follower Combat Kills 37 Registered with UFD 300 Cogmind --------- Core Integrity 102/600 Matter 325/350 Energy 432/440 System Corruption 0% Temperature Cool (44) Movement Walking (190) Ox1 Location -6/Factory Parts ------- > --- POWER (2+1) ------ Improved Ion Engine Deuterium Engine > --- PROPULSION (3) --- Aluminum Leg Carbon-fiber Leg Flexi-carbon Leg > --- UTILITY (4+1) ---- Weapon Cycler Hardened Heavy Armor Plating Insulated Plating (+) Rainbow Chip > --- WEAPON (3+1) ----- Heavy Ion Cannon Phase Cannon Hypervelocity Gauss Rifle > --- INVENTORY (1) ---- (None) Peak State ------------ > --- POWER ------------ Improved Ion Engine Deuterium Engine > --- PROPULSION ------- Aluminum Leg Aluminum Leg Carbon-fiber Leg Flexi-carbon Leg > --- UTILITY ---------- Weapon Cycler Hardened Heavy Armor Plating Insulated Plating Rainbow Chip > --- WEAPON ----------- Improved Heavy Laser Phase Cannon Hypervelocity Gauss Rifle > --- INVENTORY -------- EM Pulse Cannon [Rating: 59] Favorites ----------- Power Ion Engine Engine Ion Engine Propulsion Aluminum Leg Leg Aluminum Leg Utility Medium Matter Pod Device Improved Heat Sink Storage Medium Matter Pod Processor Rainbow Chip Hackware System Shield Protection Heavy Armor Plating Weapon Battle Cannon Energy Gun Medium Laser Energy Cannon EM Pulse Cannon Ballistic Gun Hypervelocity Gauss Rifle Ballistic Cannon Battle Cannon Build | -11 -10 -10 -8 -8 -6 ------- Run | Yrd Mat Sub Rec Scr Fac Slots Evolved 8 | 3 . 1 3 1 . Power 1 | . . . 1 . . Propulsion 2 | 1 . . 1 . . Utility 3 | 1 . . 1 1 . Weapon 2 | 1 . 1 . . . Parts Attached 37 | 5 7 4 5 10 6 Power 3 | 1 . . . 2 . Engine 3 | 1 . . . 2 . Core . | . . . . . . Reactor . | . . . . . . Propulsion 6 | 2 1 . 1 2 . Treads . | . . . . . . Leg 6 | 2 1 . 1 2 . Wheel . | . . . . . . Hover . | . . . . . . Flight . | . . . . . . Utility 15 | . 4 . 3 5 3 Device 3 | . 2 . . . 1 Storage 2 | . 2 . . . . Processor 3 | . . . . 2 1 Hackware 1 | . . . 1 . . Protection 6 | . . . 2 3 1 Artifact . | . . . . . . Weapon 13 | 2 2 4 1 1 3 Energy Gun 3 | 1 . 1 . . 1 Energy Cannon 3 | . . . 1 . 2 Ballistic Gun 4 | 1 2 . . 1 . Ballistic Cannon 3 | . . 3 . . . Launcher . | . . . . . . Special Weapon . | . . . . . . Impact Weapon . | . . . . . . Slashing Weapon . | . . . . . . Piercing Weapon . | . . . . . . Special Melee Weapon . | . . . . . . Unidentified Prototypes 1 | . . . . . 1 Parts Lost 1 | . . . . . 1 Power . | . . . . . . Propulsion . | . . . . . . Utility 1 | . . . . . 1 Weapon . | . . . . . . Highest Loss Streak 1 | . . . . . 1 To Critical Strikes . | . . . . . . Average Backups . | . . . 1 . . Power . | . . . . . . Propulsion . | . . . . . . Utility . | . . . 1 . . Weapon . | . . . . . . Tool/Special . | . . . . . . Unused Backups 2 | . . 2 . . . Power . | . . . . . . Propulsion . | . . . . . . Utility . | . . . . . . Weapon 2 | . . 2 . . . Tool/Special . | . . . . . . Average Slot Usage (%) 91 | . 96 99 98 84 80 Engine 12 | . 14 12 10 13 12 Leg 26 | . 28 25 26 26 23 Device 4 | . 21 . . . 3 Storage 7 | . 3 25 14 . . Processor 1 | . . . . 2 8 Hackware 3 | . . . 5 7 . Protection 6 | . . . 7 10 12 Energy Gun 2 | . 6 5 . . . Energy Cannon 4 | . . . 4 8 11 Ballistic Gun 7 | . 21 3 . 7 6 Ballistic Cannon 13 | . . 25 28 8 . Peak Build Rating 59 | 5 9 12 20 52 59 Average Rating 23 | 3 8 10 15 35 55 On Entrance 16 | . 5 7 12 20 52 Avg Prop Armor Cover (%) . | . . . . . . Naked Turns . | . . . . . . Heaviest Build 62 | 8 13 18 27 54 62 Greatest Support 60 | 20 20 20 30 55 60 Greatest Overweight (x) 1 | . . . 1 1 1 Average Overweight (x) . | . . . . . . Largest Inventory Capacity 1 | 1 1 1 1 1 1 Average Capacity 1 | 1 1 1 1 1 1 Most Carried 1 | . 1 1 1 1 1 Average Carried . | . . . 1 . . Final Capacity 1 | 1 1 1 1 1 1 Final Carried 1 | . 1 1 1 . . Class Distribution -------------------- 29% | Hacker-Gunner 24% | Mutant 19% | Gunner 14% | Hacker-Tank 6% | Tank 5% | Derelict-Tank Dominant Class ---------------- Mutant | -10/Materials Gunner | -10/Subcaves Gunner | -8/Recycling Hacker-Gunner | -8/Scraptown Tank | -6/Factory Resources | -11 -10 -10 -8 -8 -6 ----------- Run | Yrd Mat Sub Rec Scr Fac Matter Collected 1734 | 216 554 399 225 90 250 Remotely . | . . . . . . Salvage Created 2227 | . 696 194 551 . 786 Parts 113 | . 39 20 24 . 30 Haulers Intercepted 1 | . 1 . . . . Recyclers Shooed . | . . . . . . Parts Field Recycled . | . . . . . . Retrieved Matter . | . . . . . . Parts Self-Destructed 11 | . . 11 . . . Prevented . | . . . . . . Parts Restored . | . . . . . . Kills | -11 -10 -10 -8 -8 -6 ------- Run | Yrd Mat Sub Rec Scr Fac Combat Hostiles Destroyed 41 | . 17 10 6 . 8 Guns 23 | . 17 5 . . 1 Cannons 17 | . . 5 6 . 6 Classes Destroyed 15 | . 5 4 4 . 2 Worker 1 | . 1 . . . . Builder 1 | . . . 1 . . Tunneler 1 | . 1 . . . . Hauler 1 | . 1 . . . . Recycler 1 | . . . . . 1 Turret 2 | . . 2 . . . Watcher 2 | . 2 . . . . Swarmer 3 | . . 3 . . . Grunt 22 | . 17 . 1 . 4 Protector 1 | . . . 1 . . Sentry 4 | . . . 3 . 1 Hunter 2 | . . . 1 . 1 Heavy 2 | . . . . . 2 Artisan 2 | . . 2 . . . Subdweller 7 | . . 7 . . . Best Kill Streak 3 | . 3 3 3 . 3 Combat Bots Only 3 | . 2 3 3 . 2 Max Kills in Single Turn 2 | . 2 1 1 . 1 Gunslinging . | . . . . . . Exploded . | . . . . . . Melee . | . . . . . . Uniques/NPCs Destroyed . | . . . . . . Combat | -11 -10 -10 -8 -8 -6 -------- Run | Yrd Mat Sub Rec Scr Fac Hostile Shots Fired 310 | . 72 110 20 . 108 Missed 118 | . 22 46 8 . 42 Hits 192 | . 50 64 12 . 66 Projectile 192 | . 50 64 12 . 66 Critical Strikes 5 | . . 1 . . 4 Damage Taken 2739 | . 633 739 225 . 1142 Core 1953 | . 510 599 170 . 674 Absorbed by Shields . | . . . . . . Redirected to Core 1541 | . 404 470 141 . 526 Core Remaining (%) 99 | 100 . . . 98 . Volleys Fired 172 | . 72 38 31 . 31 Largest 3 | . 2 3 3 . 3 Hottest 183 | . 70 116 99 . 183 Shots Fired 375 | . 143 90 53 . 89 Gun 203 | . 143 29 . . 31 Cannon 172 | . . 61 53 . 58 Launcher . | . . . . . . Special . | . . . . . . Kinetic 253 | . 109 79 34 . 31 Thermal 72 | . 34 . . . 38 Explosive . | . . . . . . Electromagnetic 50 | . . 11 19 . 20 Robot Hit Streak 17 | . 17 16 9 . 16 Robot Miss Streak 4 | . 4 3 3 . 2 Penetration Max 1 | . . . . . 1 Secondary Targets 4 | . 4 . . . . Max Gunslinging Chain 1 | . 1 . . . . Shots Hit Robots 266 | . 105 61 34 . 66 Core Hits 107 | . 44 23 20 . 20 Critical Kills 1 | . . . . . 1 Critical Parts Destroyed 3 | . 1 . . . 2 Critical Strikes 13 | . 6 1 3 . 3 Burn 5 | . 5 . . . . Destroy 4 | . 1 . . . 3 Blast 4 | . . 1 3 . . Melee Attacks . | . . . . . . Impact . | . . . . . . Slashing . | . . . . . . Piercing . | . . . . . . Sneak Attacks . | . . . . . . Combat Hostiles . | . . . . . . Follow-up Attacks . | . . . . . . Damage Inflicted 4729 | . 1267 1133 949 . 1380 Guns 1780 | . 1252 368 . . 160 Cannons 2694 | . . 765 779 . 1150 Explosions 225 | . . . 155 . 70 Melee . | . . . . . . Ramming 30 | . 15 . 15 . . Kinetic 2444 | . 890 962 432 . 160 Thermal 1377 | . 362 . 155 . 860 Explosive . | . . . . . . Electromagnetic 878 | . . 171 347 . 360 Impact . | . . . . . . Slashing . | . . . . . . Piercing . | . . . . . . Highest Corruption . | . . . . . . Average Corruption . | . . . . . . Corruption Purged . | . . . . . . Corruption Blocked . | . . . . . . Overload Shots . | . . . . . . Overflow Damage 22 | . . 8 14 . . Projectiles 8 | . . 8 . . . Explosions 14 | . . . 14 . . Melee . | . . . . . . Knockbacks 11 | . . 7 4 . . Impact . | . . . . . . Kinetic 10 | . . 6 4 . . Secondary 1 | . . 1 . . . Self-Inflicted Damage 27 | . . . 27 . . Shots 1 | . . . 1 . . Rammed . | . . . . . . Targets Rammed 8 | . 6 . 2 . . Kicked 8 | . 6 . 2 . . Crushed . | . . . . . . Highest Temperature 294 | . 211 294 . . 233 Average Temperature 80 | . 79 130 . . 70 Received Heat Transfer 1059 | . 336 570 36 . 117 Siege Activations . | . . . . . . Martial Activations . | . . . . . . Shielding Activations . | . . . . . . Robots Disrupted . | . . . . . . Combat Hostiles . | . . . . . . Robots Corrupted 2 | . . . 1 . 1 Combat Hostiles 2 | . . . 1 . 1 Parts Fried 4 | . . 1 1 . 2 Impact Corruptions . | . . . . . . Robots Melted . | . . . . . . Combat Hostiles . | . . . . . . Parts Melted 6 | . 2 1 . . 3 Heat Transferred 2705 | . 1443 . 250 . 1012 Parts Sabotaged . | . . . . . . Parts Stolen . | . . . . . . Parts Stripped . | . . . . . . Power Chain Reactions 3 | . . . 2 . 1 Alert | -11 -10 -10 -8 -8 -6 ------- Run | Yrd Mat Sub Rec Scr Fac Maximum Alert Level 1 | . 1 . . . 1 Low Security (%) 93 | 100 86 . 100 . 94 Level 1 6 | . 13 . . . 5 Level 2 . | . . . . . . Level 3 . | . . . . . . Level 4 . | . . . . . . Level 5 . | . . . . . . High Security . | . . . . . . Max Security . | . . . . . . Peak Influence 239 | . 239 . 108 . 209 Initial . | . . . . . . Average 51 | . 82 . 27 . 37 Influence Increases 1465 | . 647 145 313 . 360 Destroy 0b10 Robot/C 720 | . 340 100 100 . 180 Destroy 0b10 Robot/NC 80 | . 25 . 50 . 5 Destroy Leader 146 | . 86 . . . 60 Allied During Kill 22 | . . . . . 22 Successful Hack 23 | . 21 . 2 . . Select Force Hacks 310 | . 160 . 150 . . Disable Machine 60 | . . . . . 60 Destroy Structure 44 | . . . 11 . 33 Lose Combat Pursuer 60 | . 15 45 . . . Influence Decreases 1268 | . 464 328 313 . 163 Entered New Map 89 | . . 89 . . . Time Decay 1073 | . 464 239 257 . 113 Lost Part 10 | . . . . . 10 Lost Ally 40 | . . . . . 40 Purge Threat 56 | . . . 56 . . Squads Dispatched 11 | . 6 . . . 5 Investigation 6 | . 5 . . . 1 Extermination . | . . . . . . Reinforcement 5 | . 1 . . . 4 Assault . | . . . . . . Garrison . | . . . . . . Intercept . | . . . . . . Searches Triggered . | . . . . . . Construction Impeded . | . . . . . . Haulers Reinforced . | . . . . . . Active Scanning Responses . | . . . . . . Cargo Convoy Interrupts . | . . . . . . Stealth | -11 -10 -10 -8 -8 -6 --------- Run | Yrd Mat Sub Rec Scr Fac Distress Signals 1 | . 1 . . . . Communications Jammed . | . . . . . . Distress Signals . | . . . . . . Times Spotted 55 | . 25 14 5 . 11 Peak Tracking Total 6 | . 3 6 3 . 3 Tactical Retreats 2 | . 1 1 . . . Traps | -11 -10 -10 -8 -8 -6 ------- Run | Yrd Mat Sub Rec Scr Fac Traps Triggered 4 | . 2 1 . . 1 Indirectly . | . . . . . . Trap Hack Attempts . | . . . . . . Triggered . | . . . . . . Disarmed . | . . . . . . Reprogrammed . | . . . . . . Reused . | . . . . . . Traps Extracted . | . . . . . . Installed . | . . . . . . Triggered . | . . . . . . Machines | -11 -10 -10 -8 -8 -6 ---------- Run | Yrd Mat Sub Rec Scr Fac Machines Disabled 7 | . 1 2 . . 4 Max in Single Turn 4 | . 1 1 . . 4 Machines Repaired . | . . . . . . Machines Dismantled . | . . . . . . Machines Sabotaged 2 | . 2 . . . . Overloaded Fab Kills . | . . . . . . Hacking | -11 -10 -10 -8 -8 -6 --------- Run | Yrd Mat Sub Rec Scr Fac Machines Accessed 22 | . 8 1 11 2 . Terminals 12 | . 6 . 6 . . Fabricators . | . . . . . . Repair Stations . | . . . . . . Recycling Units 7 | . 2 . 5 . . Scanalyzers . | . . . . . . Garrison Access . | . . . . . . Total Hacks 51 | . 17 1 26 7 . Successful 39 | . 11 1 20 7 . Failed 12 | . 6 . 6 . . Catastrophic . | . . . . . . Database Lockouts . | . . . . . . Manual 27 | . 14 . 13 . . Terminals 29 | . 15 . 14 . . Fabricators . | . . . . . . Repair Stations . | . . . . . . Recycling Units 14 | . 2 . 12 . . Scanalyzers . | . . . . . . Garrison Access . | . . . . . . Terminal Hacks 14 | . 3 1 3 7 . Part Schematic 1 | . . . 1 . . Robot Analysis 6 | . . . . 6 . Prototype ID Bank 1 | . 1 . . . . Terminal Index 1 | . 1 . . . . Unreport Threat 2 | . . . 2 . . Locate Traps 1 | . 1 . . . . Proto ID Catalog 2 | . . 1 . 1 . Fabricator Hacks . | . . . . . . Repair Station Hacks . | . . . . . . Recycling Unit Hacks 6 | . . . 6 . . Report Inventory 5 | . . . 5 . . Retrieve Components 1 | . . . 1 . . Scanalyzer . | . . . . . . Garrison Access Hacks . | . . . . . . Unauthorized Hacks 19 | . 8 . 11 . . Terminals 12 | . 6 . 6 . . Botnet 9 | . 4 . 5 . . Sabotage 2 | . 2 . . . . Search 1 | . . . 1 . . Fabricators . | . . . . . . Repair Stations . | . . . . . . Recycling Units 7 | . 2 . 5 . . Tunnel 7 | . 2 . 5 . . Scanalyzers . | . . . . . . Garrison Access . | . . . . . . Data Cores Recovered . | . . . . . . Used . | . . . . . . Hacking Detections 6 | . 3 . 3 . . Full Trace Events . | . . . . . . Feedback Events . | . . . . . . Feedback Blocked . | . . . . . . Robot Schematics Acquired . | . . . . . . Robots Built . | . . . . . . Authchips . | . . . . . . Time . | . . . . . . Total Robot Build Rating . | . . . . . . Part Schematics Acquired 1 | . . . 1 . . Parts Built . | . . . . . . Authchips . | . . . . . . Time . | . . . . . . Total Part Build Rating . | . . . . . . Part Studies Acquired . | . . . . . . Parts Repaired . | . . . . . . Time . | . . . . . . Parts Recycled . | . . . . . . Recycled Matter . | . . . . . . Retrieved Matter . | . . . . . . Retrieved Components 9 | . . . 9 . . Parts Scanalyzed . | . . . . . . Part Schematics Acquired . | . . . . . . Parts Damaged . | . . . . . . Bothacking | -11 -10 -10 -8 -8 -6 ------------ Run | Yrd Mat Sub Rec Scr Fac Used RIF Installer . | . . . . . . Robots Hacked . | . . . . . . Non-combat . | . . . . . . Combat . | . . . . . . Robot Hacks Applied . | . . . . . . Relay Couplers Released . | . . . . . . Fabnet Peak Effective % . | . . . . . . Robots Rewired 2 | . . . 2 . . Allies Hacked . | . . . . . . Hacks Repelled . | . . . . . . Allies | -11 -10 -10 -8 -8 -6 -------- Run | Yrd Mat Sub Rec Scr Fac Total Allies 2 | . . . 2 . . Largest Group 2 | . . . 2 2 2 Highest-Rated Group 32 | . . . 32 32 32 Highest-Rated Ally 16 | . . . 16 16 16 Total Orders 6 | . . . 4 2 . STAY 3 | . . . 2 1 . FOLLOW 3 | . . . 2 1 . Ally Attacks 11 | . . . . . 11 Total Damage 120 | . . . . . 120 Kills 1 | . . . . . 1 Allies Corrupted . | . . . . . . Allies Melted . | . . . . . . Intel | -11 -10 -10 -8 -8 -6 ------- Run | Yrd Mat Sub Rec Scr Fac Active Infowar (turns) . | . . . . . . Robot Analysis Total 6 | . . . . 6 . Derelict Logs Recovered 1 | . . 1 . . . Drone Launches . | . . . . . . Drone Recoveries . | . . . . . . Exploration | -11 -10 -10 -8 -8 -6 ------------- Run | Yrd Mat Sub Rec Scr Fac Turns Passed 7961 | 64 1540 1293 1525 2987 552 Spaces Moved 5541 | 51 1034 931 1136 2052 337 Core 6 | 6 . . . . . Treads . | . . . . . . Legs 5535 | 45 1034 931 1136 2052 337 Wheels . | . . . . . . Hover . | . . . . . . Flight . | . . . . . . Fastest Speed 50 | 50 120 120 120 120 120 Average Speed 129 | 111 120 120 120 144 128 Slowest Speed 190 | 120 120 120 190 190 190 Overloaded Moves . | . . . . . . Propulsion Burnouts . | . . . . . . Robots Hopped . | . . . . . . Potential Cave-ins . | . . . . . . Cave-ins Triggered . | . . . . . . Exploration Rate (%) 58 | 4 86 64 99 87 11 Regions Visited 5 Branch Regions 3 Pre-discovered Areas 8 | . 2 . 5 1 . Known Exits Taken 1 | . . . . 1 . Unknown Exits Taken 4 | 1 1 1 1 . . Scrap Searched 13 | . . 10 . 3 . Spaces Dug . | . . . . . . Terrain Destroyed 50 | . . . 13 . 37 Melee . | . . . . . . Projectile 14 | . . . 5 . 9 AOE 36 | . . . 8 . 28 Terrain Rammed . | . . . . . . Walls Destroyed . | . . . . . . Machines Disabled . | . . . . . . Actions | -11 -10 -10 -8 -8 -6 --------- Run | Yrd Mat Sub Rec Scr Fac Total 6012 | 55 1196 1029 1250 2083 399 Wait 130 | . 44 25 45 11 5 Move 5536 | 50 1033 930 1135 2051 337 Hop . | . . . . . . Pick Up 5 | . 1 2 . 1 1 Fast Attach 36 | 5 6 4 6 9 6 Attach 3 | . . . . 2 1 Detach 5 | . . 1 . 2 2 Swap 4 | . 1 . . . 3 Drop 26 | . 5 5 4 7 5 Fire 172 | . 72 38 31 . 31 Melee . | . . . . . . Ram . | . . . . . . Kick 8 | . 6 . 2 . . Crush . | . . . . . . Escape Stasis . | . . . . . . Rewire 10 | . . . 10 . . Trap . | . . . . . . Miscellaneous 77 | . 28 24 17 . 8 Route ------- -11/Scrapyard -10/Materials (discovered 5 exits: [*Mat x2] / [*Min x2] / *Sub) -10/Subcaves (discovered 2 exits: [*Mat] / *Rec) -8/Recycling (discovered 2 exits: *Fac / *Scr) -8/Scraptown (discovered 2 exits: *Fac x2) -6/Factory History --------- Turn | Location | Event 1 | -11/Scrapyard | Upgraded with Propulsion slot (x1) 1 | -11/Scrapyard | Upgraded with Utility slot (x1) 1 | -11/Scrapyard | Upgraded with Weapon slot (x1) 2 | -11/Scrapyard | Met Revision 17 20 | -11/Scrapyard | Discovered new exit (range 15) 65 | -11/Scrapyard | Entered Materials 65 | -10/Materials | Discovered new exit (range 7) 195 | -10/Materials | Discovered new exit (range 4) 302 | -10/Materials | Discovered new exit (range 14) 308 | -10/Materials | Build established: Mutant 490 | -10/Materials | Discovered new exit (range 3) 877 | -10/Materials | Discovered new exit (range 8) 991 | -10/Materials | Reached level 2 1605 | -10/Materials | Entered Subcaves 1607 | -10/Subcaves | Reached level 3 1632 | -10/Subcaves | Ambushed by angry Subdweller bent on revenge 1973 | -10/Subcaves | Upgraded with Weapon slot (x1) 2071 | -10/Subcaves | Discovered new exit (range 16) 2160 | -10/Subcaves | Learned Materials security intel 2287 | -10/Subcaves | Build established: Gunner 2393 | -10/Subcaves | Discovered new exit (range 16) 2768 | -10/Subcaves | Visited 4L-MR0's lab 2787 | -10/Subcaves | Found Rainbow Chip 2898 | -10/Subcaves | Entered Recycling 2900 | -8/Recycling | Reached level 4 3244 | -8/Recycling | Scanned before Scraplab entrance 3435 | -8/Recycling | Discovered new exit (range 8) 3599 | -8/Recycling | Upgraded with Utility slot (x1) 3769 | -8/Recycling | Upgraded with Propulsion slot (x1) 3776 | -8/Recycling | Reached level 5 3868 | -8/Recycling | Build established: Hacker-Gunner 4209 | -8/Recycling | Upgraded with Power slot (x1) 4351 | -8/Recycling | Build established: Hacker-Tank 4403 | -8/Recycling | Entered Scraplab 4418 | -8/Recycling | Discovered new exit (range 4) 4423 | -8/Recycling | Entered Scraptown 4423 | -8/Scraptown | Accompanied by 2 allies 4869 | -8/Scraptown | Visited UFD Registry 4869 | -8/Scraptown | Registered with UFD as "Carbonbank" 4889 | -8/Scraptown | Build established: Hacker-Gunner 4909 | -8/Scraptown | Visited Cyclists 4941 | -8/Scraptown | Visited Comm Corps 4977 | -8/Scraptown | Visited SPCMW 5015 | -8/Scraptown | Visited TADAMA 5063 | -8/Scraptown | Visited Red Mages 5164 | -8/Scraptown | Learned location of Extension (-6) 5493 | -8/Scraptown | Visited Abandonware Association 5531 | -8/Scraptown | Visited Science Guys 5611 | -8/Scraptown | Visited Curators Association 5892 | -8/Scraptown | Visited DA-N13 Charitable Foundation 5920 | -8/Scraptown | Found DCF Scrap (31 items) 5977 | -8/Scraptown | Visited Supply Room 6004 | -8/Scraptown | Visited Analyses Database 6040 | -8/Scraptown | Visited Observation Area 6062 | -8/Scraptown | Visited Science Testing Area 6086 | -8/Scraptown | Visited Scrap Suit Storage 6243 | -8/Scraptown | Discovered new exit (range 5) 6430 | -8/Scraptown | Upgraded with Utility slot (x1) 6431 | -8/Scraptown | Attached Rainbow Chip, gained temporary slots: Power, Propulsion, Utility, Weapon 6727 | -8/Scraptown | Build established: Hacker-Tank 6836 | -8/Scraptown | Discovered new exit (range 11) 7147 | -8/Scraptown | Visited Assassins FH 7339 | -8/Scraptown | Build established: Derelict-Tank 7409 | -8/Scraptown | Identified exit to Factory 7410 | -8/Scraptown | Entered Factory 7410 | -6/Factory | Accompanied by 2 allies 7412 | -6/Factory | Reached level 6 7567 | -6/Factory | Reached level 7 7783 | -6/Factory | Build established: Tank 7844 | -6/Factory | Core integrity fell below 50% 7962 | -6/Factory | Core integrity fell below 20% 7962 | -6/Factory | Self-destructed Last Messages --------------- 07947_ HV Slug penetrates H-66 Slayer. 07948_ K-01 Serf collects debris. 07949_ Penetrated by Slug. 07952_ HV Slug penetrates H-66 Slayer. 07952_ HV Slug penetrates Wall. 07952_ K-01 Serf collects debris. 07953_ Penetrated by Slug. 07953_ Critical hit (Destroy). 07954_ Penetrated by Slug. 07956_ R-10 Processor collects Hvy. Laser. 07956_ Penetrated by Slug. 07956_ Slug penetrates H-66 Slayer. 07956_ K-01 Serf collects debris. 07957_ HV Slug penetrates H-66 Slayer. 07959_ Penetrated by Slug. 07960_ HV Slug penetrates H-66 Slayer. 07960_ HV Slug penetrates Wall. 07960_ R-10 Processor collects Hvy. Laser. 07960_ K-01 Serf collects debris. 07961_ Slug penetrates Wall. Map ----- +----------------------------------------------------+ | ?????????????????????????????????????????????????? | | ?????????????????????????????????????????????????? | | ?????????????????????????????????????????????????? | | ?????????????????????????????????????????????????? | | ?????????????????????????????????????????????????? | | ?????????????????????????????????????????????????? | | ?????????????????????????????????????????????????? | | ?????????????????????????????????????????????????? | | ?????????????????????????????????????????????????? | | ????????????????????????? H???????????????????? | | ????????????????????????# #???? ????????????? | | ????????????????????????# #???? ? ?????????? | | ????????????????????????# #?? ????????? | | ??????????????!?[???????# #??? ??? ?????? | | ??????????????? #??????# #?? ? ? ?????? | | ?????????????###;;###???# #?? ??????? | | ????????????? ### ### ??????? | | ???????????? # ####+############# | | ???????????? ; | | ???????????? o # | | ??????????? ! !h # k ? | | ????????????" h | | ????????????" ; | | ?????????????????] ; R%= | | ??????????????????????# %=%! | | ??????????????????????# @ ####*%! ####????? | | ??????????????????????#;#########??#%!%! #???????? | | ??????????????????????????????????##*[%= #???????? | | ??????????????????????????????????##*%%! #???????? | | ?????????????????????????????????###!!= #???????? | | ?????????????????????????#########!#]! #???????? | | ??????????????????????# ! ! !!#!%! #???????? | | ??????????????????????# #=%* #???????? | | ??????????????????????# # #???????? | | ??????????????????????# # #???????? | | ??????????????????????# """ """ # #???????? | | ??????????????????????????"" """ # #???????? | | ??????????????????????# """ """ ! # #???????? | | ??????????????????????# # #???????? | | ??????????????????????# """ """ # #???????? | | ???????????????????????????" """ # #???????? | | ???????????????????????????" """ + ######### | | ???????????????????????? = # # !!! | | ????????????????????????############ % # !! | | ????????????????????????????????? ## # !! | | ???????????????????????????#????? ## # """ | | ???????# ??? "?????????????# ???" ##= # """ | | ???????# ??? "?????????????# ???" ## % # """ | | ???????# ??? ?????????#### """" ## % + | | ? ???# ??? """ ??????? # """" ## # """ | +----------------------------------------------------+ Best States ------------- Heat Dissipation 97 Energy Generation 21 Energy Capacity 440 Matter Stores 500 Matter Capacity 500 Sight Range 16 Robot Scan Range 20 Terrain Scan Density 10 Armor Coverage 750 Resistance: EM 15 Weapon Cycling 15 Evasion (%) 55 Offensive Hacking 10 Defensive Hacking 15 Item Schematics ----------------- Powered Armor | -8/Recycling | Hacked Robot Schematics ------------------ None Fabricated ------------ Nothing Repaired ---------- Nothing Studied --------- None Alien Tech Used ----------------- None Achievements -------------- None Challenges ------------ None RPGLIKE | -11 -10 -10 -8 -8 -6 --------- Run | Yrd Mat Sub Rec Scr Fac Levels Raised 6 | . 1 1 2 . 2 XP Earned 13378 | 3000 2960 1500 2250 650 3018 XP Spent 11895 | 2650 . 1400 3100 1775 2970 Upgrades 39 | 6 . 7 7 7 12 Power Slot 1 | . . . 1 . . Propulsion Slot 2 | 1 . . 1 . . Utility Slot 3 | 1 . . 1 1 . Weapon Slot 2 | 1 . 1 . . . Heat Dissipation 12 | . . 6 . . 6 Matter Storage 1 | . . . 1 . . Mass Support 1 | . . . . . 1 Inventory Capacity 1 | 1 . . . . . Sensor Range 10 | . . . . 6 4 Ranged Accuracy 3 | 2 . . . . 1 Hack Attack % 2 | . . . 2 . . Hack Defense % 1 | . . . 1 . . Protomatter Created 586 | . 266 147 111 . 62 Integrity Restored 1581 | . 577 485 333 . 186 Core 1455 | . 486 450 333 . 186 Parts 126 | . 91 35 . . . Protomatter Decayed 132 | . 70 62 . . . Game ------ Seed WarlordBlanketShovel Manual? 0 Play Time 01:03:37 Cumulative 159.6 hours Start 2025.11.07 @ 23:10:36 End 2025.11.09 @ 01:02:00 Sessions 3 Manual Loads 0 Difficulty Rogue Special Mode Winter2019/RPGLIKE Game No. 72 Rogue 68 Adventurer 4 Explorer 0 Win Type - Total 4 Types 3/0/1/0/0/0/0/0/0/0 Lore% 65 Gallery% 49 Achievement% 35 Wizard Run 0 Options --------- Layout 0 ASCII 0 Keyboard 0 Movement Arrows Keybinds 0 Fullscreen 2 Font 32/SmallcapsGlow Map View 88x55 Zoom Use 0% Tactical HUD 1 Map Filters NONE Filters NONE Steam 1 RUN: bb43317f-a5bd-4e10-982f-099eef166928